[Event "2nd FIDE WCC Rapid G10"]
[Site "Minsk"]
[Date "2018.06.22"]
[Round "2"]
[White "Marchenko, Yelyzaveta"]
[Black "Kulish, Glafira"]
[Result "1-0"]
[ECO "A45"]
[WhiteElo "1510"]
[BlackElo "1222"]
[Annotator "NA RC"]
[PlyCount "161"]
[EventDate "2018.06.22"]
[EventType "rapid"]
[EventCountry "BLR"]
[SourceTitle "playchess.com"]
[Source "ChessBase"]
[SourceQuality "1"]
[TimeControl "600+5"]

1. d4 {[%emt 0:00:00]} Nf6 {[%emt 0:00:02]} 2. Bf4 {[%emt 0:00:00]} g6 {[%emt 0:00:02]} 3. e3 {[%emt 0:00:00]} Bg7 {[%emt 0:00:02]} 4. Nf3 {[%emt 0:00:01]} O-O {[%emt 0:00:04]} 5. c4 {[%emt 0:00:03]} d6 {[%emt 0:00:02]} 6. Nc3 {[%emt 0:00:02]} Nbd7 {[%emt 0:00:45]} 7. Be2 {[%emt 0:00:14]} c5 {[%emt 0:00:18]} 8. O-O {[%emt 0:00:47]} b6 {[%emt 0:00:56]} 9. h3 {[%emt 0:00:21]} Bb7 {[%emt 0:00:03]} 10. Qc2 {[%emt 0:00:57]} Qc7 {[%emt 0:01:54]} 11. d5 {[%emt 0:01:21]} Nh5 {[%emt 0:01:42]} 12. Bh2 {[%emt 0:00:03]} Nhf6 {[%emt 0:00:03]} 13. Rfe1 {[%emt 0:00:15]} Rfe8 {[%emt 0:00:08]} 14. Bf1 {[%emt 0:00:08]} Bc8 {[%emt 0:00:15]} 15. Nb5 {[%emt 0:00:08]} Qb8 {[%emt 0:00:07]} 16. Nc3 {[%emt 0:00:05]} Nf8 {[%emt 0:00:03]} 17. e4 {[%emt 0:00:23]} N6d7 {[%emt 0:00:20]} 18. Rad1 {[%emt 0:00:49]} Bb7 {[%emt 0:00:23]} 19. Rd2 {[%emt 0:00:35]} Ba6 {[%emt 0:00:24]} 20. a3 {[%emt 0:00:54]} Bb7 {[%emt 0:00:32]} 21. Qd3 {[%emt 0:00:45]} Ba6 {[%emt 0:00:25]} 22. Qe3 {[%emt 0:00:25]} Qc7 {[%emt 0:00:15]} 23. e5 {[%emt 0:00:08]} dxe5 {[%emt 0:02:11]} 24. Nxe5 {[%emt 0:00:02]} Qc8 {[%emt 0:00:14]} 25. Nxd7 {[%emt 0:00:52]} Nxd7 {[%emt 0:00:10]} 26. Qd3 {[%emt 0:00:07]} Nf6 {[%emt 0:00:30]} 27. Ne4 {[%emt 0:00:21]} Qd7 {[%emt 0:00:07]} 28. b3 {[%emt 0:00:13]} Rad8 {[%emt 0:00:03]} 29. Nxf6+ {[%emt 0:00:21]} Bxf6 {[%emt 0:00:08]} 30. Be2 {[%emt 0:00:03]} Bg7 {[%emt 0:00:02]} 31. Bg4 {[%emt 0:00:01]} Qb7 {[%emt 0:00:03]} 32. Bf3 {[%emt 0:00:13]} Qd7 {[%emt 0:00:03]} 33. Qc2 {[%emt 0:00:12]} Qc8 {[%emt 0:00:13]} 34. Bg4 {[%emt 0:00:02]} Qa8 {[%emt 0:00:02]} 35. Bf3 {[%emt 0:00:02]} Bb7 {[%emt 0:00:01]} 36. Be4 {[%emt 0:00:14]} Qc8 {[%emt 0:00:00]} 37. Red1 {[%emt 0:00:20]} Qa8 {[%emt 0:00:04]} 38. Bd3 {[%emt 0:00:08]} Qc8 {[%emt 0:00:04]} 39. Re2 {[%emt 0:00:03]} Qa8 {[%emt 0:00:05]} 40. Rde1 {[%emt 0:00:02]} Rd7 {[%emt 0:00:11]} 41. Be4 {[%emt 0:00:12]} Qc8 {[%emt 0:00:13]} 42. Bf3 {[%emt 0:00:02]} Qa8 {[%emt 0:00:13]} 43. Bg4 {[%emt 0:00:01]} f5 {[%emt 0:00:01]} 44. Bf3 {[%emt 0:00:02]} Qd8 {[%emt 0:00:05]} 45. Be5 {[%emt 0:00:09]} Bxe5 {[%emt 0:00:11]} 46. Rxe5 {[%emt 0:00:01]} Rd6 {[%emt 0:00:07]} 47. Qe2 {[%emt 0:00:03]} Rd7 {[%emt 0:00:02]} 48. g4 {[%emt 0:00:28]} f4 {[%emt 0:00:09]} 49. Qe4 {[%emt 0:00:06]} Rf8 {[%emt 0:00:06]} 50. Rxe7 {[%emt 0:00:04]} Rxe7 {[%emt 0:00:01]} 51. Qxe7 Qxe7 {[%emt 0:00:03]} 52. Rxe7 {[%emt 0:00:02]} Bc8 {[%emt 0:00:02]} 53. Rxa7 {[%emt 0:00:02]} Rf7 {[%emt 0:00:05]} 54. Rxf7 {[%emt 0:00:02]} Kxf7 {[%emt 0:00:02]} 55. Kf1 {[%emt 0:00:01]} Kf6 {[%emt 0:00:01]} 56. Ke2 {[%emt 0:00:01]} Ke5 {[%emt 0:00:02]} 57. Kd3 {[%emt 0:00:02]} g5 {[%emt 0:00:03]} 58. Be4 {[%emt 0:00:01]} h6 {[%emt 0:00:01]} 59. f3 {[%emt 0:00:04]} Bb7 {[%emt 0:00:03]} 60. Bg6 {[%emt 0:00:04]} Bc8 {[%emt 0:00:05]} 61. b4 {[%emt 0:00:04]} cxb4 {[%emt 0:00:05]} 62. axb4 {[%emt 0:00:01]} Ba6 {[%emt 0:00:01]} 63. Be8 {[%emt 0:00:07]} Bb7 {[%emt 0:00:20]} 64. Bd7 {[%emt 0:00:04]} Kd6 {[%emt 0:00:09]} 65. Bf5 {[%emt 0:00:04]} Ke5 {[%emt 0:00:03]} 66. Be4 {[%emt 0:00:12]} Ba6 {[%emt 0:00:06]} 67. Kc3 {[%emt 0:00:03]} Bb7 {[%emt 0:00:11]} 68. Bg6 {[%emt 0:00:19]} Ba6 {[%emt 0:00:04]} 69. Be8 {[%emt 0:00:04]} Bb7 {[%emt 0:00:05]} 70. Ba4 {[%emt 0:00:02]} Ba6 {[%emt 0:00:03]} 71. Bc6 {[%emt 0:00:02]} Bc8 {[%emt 0:00:09]} 72. c5 {[%emt 0:00:03]} bxc5 {[%emt 0:00:06]} 73. bxc5 {[%emt 0:00:01]} Ba6 {[%emt 0:00:01]} 74. d6 {[%emt 0:00:07]} Bc8 {[%emt 0:00:04]} 75. d7 {[%emt 0:00:04]} Bxd7 {[%emt 0:00:02]} 76. Bxd7 {[%emt 0:00:01]} Kd5 {[%emt 0:00:01]} 77. c6 {[%emt 0:00:02]} Kd6 {[%emt 0:00:01]} 78. Kc4 {[%emt 0:00:03]} Kc7 {[%emt 0:00:02]} 79. Kd5 {[%emt 0:00:01]} Kd8 {[%emt 0:00:06]} 80. Kd6 {[%emt 0:00:02]} h5 {[%emt 0:00:04]} 81. c7# 1-0

[Event "2nd FIDE WCC Rapid G10"]
[Site "Minsk"]
[Date "2018.06.22"]
[Round "2"]
[White "Kirdyashkina, Ekaterina"]
[Black "Kobak, Polina"]
[Result "0-1"]
[ECO "C01"]
[WhiteElo "1463"]
[BlackElo "1336"]
[Annotator "NA RC"]
[PlyCount "88"]
[EventDate "2018.06.22"]
[EventType "rapid"]
[EventCountry "BLR"]
[SourceTitle "playchess.com"]
[Source "ChessBase"]
[SourceQuality "1"]
[TimeControl "600+5"]

1. e4 {[%emt 0:00:00]} e6 {[%emt 0:00:01]} 2. d4 {[%emt 0:00:00]} d5 {[%emt 0:00:01]} 3. exd5 {[%emt 0:00:00]} exd5 {[%emt 0:00:02]} 4. c4 {[%emt 0:00:01]} Nf6 {[%emt 0:00:13]} 5. Nc3 {[%emt 0:00:01]} Bb4 {[%emt 0:00:04]} 6. Be3 {[%emt 0:00:23]} O-O {[%emt 0:00:03]} 7. Be2 {[%emt 0:00:26]} dxc4 {[%emt 0:00:04]} 8. Bxc4 {[%emt 0:00:02]} Nc6 {[%emt 0:00:12]} 9. Nge2 {[%emt 0:00:08]} Ne7 {[%emt 0:00:30]} 10. O-O {[%emt 0:00:11]} Ned5 {[%emt 0:00:08]} 11. Nxd5 {[%emt 0:00:09]} Nxd5 {[%emt 0:00:03]} 12. Qb3 {[%emt 0:00:05]} Nxe3 {[%emt 0:00:11]} 13. fxe3 {[%emt 0:00:02]} Qe7 {[%emt 0:01:30]} 14. Nf4 {[%emt 0:01:02]} Bd6 {[%emt 0:00:37]} 15. g3 {[%emt 0:01:37]} c6 {[%emt 0:00:26]} 16. a4 {[%emt 0:00:49]} Bxf4 {[%emt 0:01:00]} 17. Rxf4 {[%emt 0:00:50]} Be6 {[%emt 0:00:10]} 18. Bxe6 {[%emt 0:00:11]} fxe6 {[%emt 0:00:19]} 19. Raf1 {[%emt 0:00:08]} Rxf4 {[%emt 0:00:08]} 20. Rxf4 {[%emt 0:00:08]} Rf8 {[%emt 0:00:02]} 21. Re4 {[%emt 0:00:18]} Re8 {[%emt 0:00:17]} 22. Re5 {[%emt 0:00:06]} b6 {[%emt 0:00:45]} 23. Qc4 {[%emt 0:00:05]} Qd6 {[%emt 0:00:10]} 24. Qc3 {[%emt 0:00:41]} c5 {[%emt 0:01:31]} 25. Kg2 {[%emt 0:01:19]} cxd4 {[%emt 0:00:18]} 26. exd4 {[%emt 0:00:08]} Rd8 {[%emt 0:00:34]} 27. Qc4 {[%emt 0:00:03]} Kf7 {[%emt 0:00:24]} 28. Qf1+ {[%emt 0:00:34]} Kg8 {[%emt 0:00:08]} 29. Qc4 {[%emt 0:00:17]} Kf7 {[%emt 0:00:02]} 30. Rf5+ {[%emt 0:00:50]} Ke7 {[%emt 0:00:26]} 31. Re5 {[%emt 0:00:14]} Kf7 {[%emt 0:00:02]} 32. Rf5+ {[%emt 0:00:16]} Ke7 {[%emt 0:00:04]} 33. Rg5 {[%emt 0:00:34]} Kf6 {[%emt 0:00:46]} 34. Re5 {[%emt 0:00:18]} Kf7 {[%emt 0:00:02]} 35. Qf1+ {[%emt 0:00:20]} Kg8 {[%emt 0:00:29]} 36. Qc4 {[%emt 0:00:07]} Kf7 {[%emt 0:00:01]} 37. Qf1+ {[%emt 0:00:02]} Kg8 {[%emt 0:00:01]} 38. Qc4 {[%emt 0:00:26]} Kf7 {[%emt 0:00:02]} 39. Qe2 {[%emt 0:00:08]} Qxd4 {[%emt 0:00:53]} 40. Rxe6 {[%emt 0:00:02]} Qd5+ {[%emt 0:00:01]} 41. Re4 {[%emt 0:00:01]} Kg8 {[%emt 0:00:26]} 42. Kg1 {[%emt 0:00:15]} Qc5+ {[%emt 0:00:09]} 43. Re3 {[%emt 0:00:07]} Qc1+ {[%emt 0:00:02]} 44. Qf1 Qxe3+ 0-1

[Event "2nd FIDE WCC Rapid G10"]
[Site "Minsk"]
[Date "2018.06.22"]
[Round "2"]
[White "Zavivaeva, Evelina"]
[Black "Khomich, Maryna"]
[Result "1-0"]
[ECO "B13"]
[WhiteElo "1390"]
[BlackElo "1193"]
[Annotator "NA RC"]
[PlyCount "96"]
[EventDate "2018.06.22"]
[EventType "rapid"]
[EventCountry "BLR"]
[SourceTitle "playchess.com"]
[Source "ChessBase"]
[SourceQuality "1"]
[TimeControl "600+5"]

1. d4 {[%emt 0:00:00]} c6 {[%emt 0:00:05]} 2. e4 {[%emt 0:00:03]} d5 {[%emt 0:00:03]} 3. exd5 {[%emt 0:00:01]} cxd5 {[%emt 0:00:01]} 4. Bd3 {[%emt 0:00:01]} Nc6 {[%emt 0:00:06]} 5. c3 {[%emt 0:00:01]} Nf6 {[%emt 0:00:03]} 6. Bf4 {[%emt 0:00:00]} g6 {[%emt 0:00:14]} 7. Nd2 {[%emt 0:00:16]} Bg7 {[%emt 0:00:06]} 8. Ngf3 {[%emt 0:00:21]} O-O {[%emt 0:00:33]} 9. h3 {[%emt 0:00:10]} h5 {[%emt 0:00:12]} 10. Qc2 {[%emt 0:00:10]} Qe8 {[%emt 0:00:23]} 11. O-O-O {[%emt 0:00:14]} Bd7 {[%emt 0:01:17]} 12. Rde1 {[%emt 0:00:19]} Rc8 {[%emt 0:01:24]} 13. a3 {[%emt 0:01:41]} Nh7 {[%emt 0:01:43]} 14. Nb3 {[%emt 0:03:17]} f5 {[%emt 0:01:06]} 15. Ne5 {[%emt 0:01:44]} Nf6 {[%emt 0:01:37]} 16. Nc5 {[%emt 0:01:17]} Nxd4 {[%emt 0:00:59]} 17. cxd4 {[%emt 0:00:08]} b6 {[%emt 0:00:01]} 18. Kb1 bxc5 {[%emt 0:00:57]} 19. dxc5 {[%emt 0:00:51]} Ba4 {[%emt 0:00:05]} 20. Qe2 {[%emt 0:00:44]} Rxc5 {[%emt 0:00:11]} 21. Rc1 {[%emt 0:00:00]} Rxc1+ {[%emt 0:00:06]} 22. Rxc1 Kh7 {[%emt 0:00:26]} 23. Nf3 {[%emt 0:00:17]} Rf7 {[%emt 0:00:07]} 24. Ng5+ {[%emt 0:00:01]} Kg8 {[%emt 0:00:05]} 25. Nxf7 Qxf7 {[%emt 0:00:02]} 26. f3 {[%emt 0:00:21]} Nd7 {[%emt 0:00:05]} 27. Rc8+ Kh7 {[%emt 0:00:02]} 28. Rc7 {[%emt 0:00:13]} e5 {[%emt 0:00:06]} 29. Bh2 {[%emt 0:00:07]} Qe6 {[%emt 0:00:03]} 30. Rc1 {[%emt 0:00:03]} Nb6 {[%emt 0:00:09]} 31. Bb5 {[%emt 0:00:07]} Bxb5 32. Qxb5 {[%emt 0:00:01]} e4 {[%emt 0:00:07]} 33. Qe2 {[%emt 0:00:08]} Qf6 {[%emt 0:00:05]} 34. fxe4 dxe4 {[%emt 0:00:02]} 35. Qc2 {[%emt 0:00:09]} Nc4 {[%emt 0:00:05]} 36. Qc3 {[%emt 0:00:08]} Qxc3 {[%emt 0:00:02]} 37. bxc3 {[%emt 0:00:01]} Nxa3+ {[%emt 0:00:02]} 38. Ka2 {[%emt 0:00:03]} Nc4 {[%emt 0:00:06]} 39. Bf4 {[%emt 0:00:08]} Kg8 {[%emt 0:00:02]} 40. Rd1 {[%emt 0:00:05]} Nb6 41. c4 {[%emt 0:00:06]} Nxc4 {[%emt 0:00:21]} 42. Rd8+ {[%emt 0:00:01]} Kf7 {[%emt 0:00:05]} 43. Rd7+ {[%emt 0:00:01]} Kf6 {[%emt 0:00:06]} 44. Rxa7 {[%emt 0:00:07]} Bf8 {[%emt 0:00:06]} 45. Rd7 {[%emt 0:00:08]} e3 {[%emt 0:00:09]} 46. Rd1 {[%emt 0:00:07]} g5 {[%emt 0:00:12]} 47. Bh2 {[%emt 0:00:05]} f4 {[%emt 0:00:01]} 48. Rf1 {[%emt 0:00:07]} Bb4 {time} 1-0

[Event "2nd FIDE WCC Rapid G10"]
[Site "Minsk"]
[Date "2018.06.22"]
[Round "2"]
[White "Ho, Ngoc Vy"]
[Black "Szczotka, Klara"]
[Result "0-1"]
[ECO "A80"]
[WhiteElo "1275"]
[BlackElo "1465"]
[Annotator "NA RC"]
[PlyCount "152"]
[EventDate "2018.06.22"]
[EventType "rapid"]
[EventCountry "BLR"]
[SourceTitle "playchess.com"]
[Source "ChessBase"]
[SourceQuality "1"]
[TimeControl "600+5"]

1. d4 {[%emt 0:00:00]} f5 {[%emt 0:00:01]} 2. Nf3 {[%emt 0:00:09]} Nf6 {[%emt 0:00:06]} 3. c4 {[%emt 0:00:03]} g6 {[%emt 0:00:05]} 4. Nc3 {[%emt 0:00:03]} Bg7 {[%emt 0:00:02]} 5. e3 {[%emt 0:00:05]} O-O {[%emt 0:00:03]} 6. Be2 {[%emt 0:00:03]} d6 {[%emt 0:00:02]} 7. O-O {[%emt 0:00:03]} Qe8 {[%emt 0:00:05]} 8. b3 {[%emt 0:00:09]} e5 {[%emt 0:00:21]} 9. dxe5 {[%emt 0:00:17]} dxe5 {[%emt 0:00:01]} 10. Bb2 {[%emt 0:00:46]} c6 {[%emt 0:01:22]} 11. Qd6 {[%emt 0:01:35]} Nbd7 {[%emt 0:00:31]} 12. c5 {[%emt 0:01:01]} h6 {[%emt 0:04:12]} 13. Bc4+ {[%emt 0:00:05]} Kh7 {[%emt 0:00:04]} 14. b4 {[%emt 0:00:29]} e4 {[%emt 0:00:37]} 15. Nd4 {[%emt 0:00:07]} Ne5 {[%emt 0:00:09]} 16. Bb3 {[%emt 0:01:23]} Nh5 {[%emt 0:01:48]} 17. Ne6 {[%emt 0:00:38]} Bxe6 {[%emt 0:00:25]} 18. Qxe6 {[%emt 0:00:02]} Qxe6 {[%emt 0:00:07]} 19. Bxe6 {[%emt 0:00:03]} Rfe8 {[%emt 0:00:06]} 20. Bb3 {[%emt 0:00:04]} Rad8 {[%emt 0:00:02]} 21. Rad1 {[%emt 0:00:04]} Nd3 {[%emt 0:00:13]} 22. Ba1 {[%emt 0:00:14]} Rd7 {[%emt 0:00:14]} 23. b5 {[%emt 0:00:06]} cxb5 {[%emt 0:00:11]} 24. Nxb5 {[%emt 0:00:04]} Bxa1 {[%emt 0:00:07]} 25. Rxa1 {[%emt 0:00:03]} Nxc5 {[%emt 0:00:14]} 26. Nxa7 {[%emt 0:00:13]} Red8 {[%emt 0:00:15]} 27. Nb5 {[%emt 0:00:14]} Nxb3 28. axb3 {[%emt 0:00:02]} Ng7 {[%emt 0:00:25]} 29. Nd4 {[%emt 0:00:05]} Rd6 {[%emt 0:00:09]} 30. Rfc1 {[%emt 0:00:03]} R6d7 {[%emt 0:00:11]} 31. h3 {[%emt 0:00:01]} Kg8 {[%emt 0:00:08]} 32. Ra7 {[%emt 0:00:02]} Kf7 {[%emt 0:00:04]} 33. Kf1 {[%emt 0:00:24]} Ne6 {[%emt 0:00:04]} 34. Nb5 {[%emt 0:01:05]} Ke7 {[%emt 0:00:10]} 35. Nc3 {[%emt 0:00:27]} Nc5 {[%emt 0:00:08]} 36. b4 {[%emt 0:00:12]} Nd3 {[%emt 0:00:01]} 37. Rd1 {[%emt 0:00:07]} Nxb4 {[%emt 0:00:05]} 38. Rb1 {[%emt 0:00:07]} Nc6 {[%emt 0:00:13]} 39. Raxb7 {[%emt 0:00:04]} Rxb7 {[%emt 0:00:06]} 40. Rxb7+ {[%emt 0:00:01]} Rd7 {[%emt 0:00:02]} 41. Rb6 {[%emt 0:00:18]} Ne5 {[%emt 0:00:03]} 42. Rb5 {[%emt 0:00:05]} Nd3 {[%emt 0:00:08]} 43. Nd5+ {[%emt 0:00:04]} Ke6 {[%emt 0:00:04]} 44. Nc3 {[%emt 0:00:21]} Rc7 {[%emt 0:00:05]} 45. Rb6+ {[%emt 0:00:04]} Kf7 {[%emt 0:00:02]} 46. Nd5 {[%emt 0:00:41]} Rc1+ {[%emt 0:00:03]} 47. Ke2 {[%emt 0:00:01]} Rc2+ {[%emt 0:00:03]} 48. Kd1 {[%emt 0:00:05]} Rxf2 {[%emt 0:00:04]} 49. Rf6+ {[%emt 0:00:09]} Kg7 {[%emt 0:00:02]} 50. Ra6 {[%emt 0:00:13]} h5 {[%emt 0:00:09]} 51. Ra7+ {[%emt 0:00:02]} Kh6 {[%emt 0:00:10]} 52. Ne7 {[%emt 0:01:08]} Rxg2 {[%emt 0:00:10]} 53. Ng8+ {[%emt 0:00:03]} Kg5 {[%emt 0:00:02]} 54. Ne7 {[%emt 0:00:08]} Kh4 {[%emt 0:00:05]} 55. Ra6 {[%emt 0:00:04]} Kxh3 {[%emt 0:00:05]} 56. Nxg6 {[%emt 0:00:10]} Rg1+ {[%emt 0:00:03]} 57. Kc2 {[%emt 0:00:02]} Nb4+ {[%emt 0:00:01]} 58. Kb3 {[%emt 0:00:04]} Nxa6 {[%emt 0:00:01]} 59. Nf4+ {[%emt 0:00:02]} Kh4 {[%emt 0:00:02]} 60. Ne2 {[%emt 0:00:07]} Re1 {[%emt 0:00:03]} 61. Nf4 {[%emt 0:00:03]} Rxe3+ {[%emt 0:00:02]} 62. Kc2 {[%emt 0:00:06]} Kg4 {[%emt 0:00:03]} 63. Nd5 {[%emt 0:00:03]} Re2+ {[%emt 0:00:02]} 64. Kd1 {[%emt 0:00:01]} Ra2 {[%emt 0:00:05]} 65. Ne3+ {[%emt 0:00:05]} Kf4 {[%emt 0:00:04]} 66. Nd5+ {[%emt 0:00:02]} Ke5 {[%emt 0:00:01]} 67. Nc3 {[%emt 0:00:02]} Ra3 {[%emt 0:00:03]} 68. Nb1 {[%emt 0:00:07]} Ra1 {[%emt 0:00:01]} 69. Kc2 {[%emt 0:00:02]} Rxb1 {[%emt 0:00:02]} 70. Kxb1 {[%emt 0:00:02]} e3 {[%emt 0:00:01]} 71. Kc2 {[%emt 0:00:02]} f4 {[%emt 0:00:02]} 72. Kd1 {[%emt 0:00:01]} f3 {[%emt 0:00:01]} 73. Ke1 {[%emt 0:00:00]} h4 {[%emt 0:00:02]} 74. Kf1 {[%emt 0:00:02]} h3 {[%emt 0:00:02]} 75. Kg1 {[%emt 0:00:03]} h2+ {[%emt 0:00:02]} 76. Kxh2 {[%emt 0:00:03]} e2 0-1

[Event "2nd FIDE WCC Rapid G10"]
[Site "Minsk"]
[Date "2018.06.22"]
[Round "2"]
[White "Antonova, Arina A"]
[Black "Kleymenova, Valeria"]
[Result "0-1"]
[ECO "C01"]
[WhiteElo "1264"]
[BlackElo "1669"]
[Annotator "NA RC"]
[PlyCount "80"]
[EventDate "2018.06.22"]
[EventType "rapid"]
[EventCountry "BLR"]
[SourceTitle "playchess.com"]
[Source "ChessBase"]
[SourceQuality "1"]
[TimeControl "600+5"]

1. e4 {[%emt 0:00:00]} e6 {[%emt 0:00:01]} 2. d4 {[%emt 0:00:00]} d5 {[%emt 0:00:02]} 3. exd5 {[%emt 0:00:04]} exd5 {[%emt 0:00:02]} 4. Nf3 {[%emt 0:00:02]} Nf6 {[%emt 0:00:03]} 5. Bg5 {[%emt 0:00:04]} Bd6 {[%emt 0:00:02]} 6. Nc3 {[%emt 0:00:02]} c6 {[%emt 0:00:03]} 7. Bd3 {[%emt 0:00:03]} O-O {[%emt 0:00:04]} 8. O-O {[%emt 0:00:02]} Bg4 {[%emt 0:00:03]} 9. h3 {[%emt 0:00:20]} Bh5 {[%emt 0:00:02]} 10. Be2 {[%emt 0:00:08]} Nbd7 {[%emt 0:00:10]} 11. Ne5 {[%emt 0:00:29]} Bxe2 {[%emt 0:00:11]} 12. Qxe2 {[%emt 0:00:02]} Re8 {[%emt 0:00:17]} 13. Qf3 {[%emt 0:01:06]} Bxe5 {[%emt 0:00:49]} 14. dxe5 {[%emt 0:00:04]} Nxe5 {[%emt 0:00:02]} 15. Qg3 {[%emt 0:00:14]} Ng6 {[%emt 0:01:00]} 16. Rfe1 {[%emt 0:00:28]} Rxe1+ {[%emt 0:01:04]} 17. Rxe1 {[%emt 0:00:02]} h6 {[%emt 0:01:20]} 18. Bh4 {[%emt 0:00:43]} Nxh4 {[%emt 0:00:14]} 19. Qxh4 {[%emt 0:00:03]} Qb6 {[%emt 0:00:42]} 20. b3 {[%emt 0:00:21]} Qc5 {[%emt 0:00:48]} 21. Re3 {[%emt 0:00:05]} Kh7 {[%emt 0:00:51]} 22. Rg3 {[%emt 0:01:23]} Re8 {[%emt 0:00:23]} 23. Qf4 {[%emt 0:01:05]} Qe7 {[%emt 0:00:37]} 24. Re3 {[%emt 0:00:45]} Qd7 {[%emt 0:00:28]} 25. Na4 {[%emt 0:00:43]} b6 {[%emt 0:00:26]} 26. Rd3 {[%emt 0:00:24]} Nh5 {[%emt 0:00:25]} 27. Qf3 {[%emt 0:00:29]} Re1+ {[%emt 0:00:06]} 28. Kh2 {[%emt 0:00:11]} Qc7+ {[%emt 0:00:29]} 29. g3 {[%emt 0:00:13]} Nf6 {[%emt 0:00:07]} 30. Qf5+ {[%emt 0:00:11]} Kg8 {[%emt 0:00:02]} 31. c4 {[%emt 0:00:36]} Re5 {[%emt 0:00:58]} 32. Qf4 {[%emt 0:00:20]} Qe7 {[%emt 0:00:01]} 33. Re3 {[%emt 0:00:13]} Rxe3 {[%emt 0:00:04]} 34. fxe3 {[%emt 0:00:06]} dxc4 {[%emt 0:00:16]} 35. bxc4 {[%emt 0:00:15]} Qa3 {[%emt 0:00:11]} 36. Qb8+ {[%emt 0:00:07]} Kh7 {[%emt 0:00:01]} 37. Qxa7 {[%emt 0:00:21]} b5 {[%emt 0:00:04]} 38. cxb5 {[%emt 0:00:22]} cxb5 {[%emt 0:00:00]} 39. Qxf7 {[%emt 0:00:46]} Qxa4 {[%emt 0:00:02]} 40. g4 {[%emt 0:00:18]} Qe4 {[%emt 0:00:12]} 0-1

[Event "2nd FIDE WCC Rapid G10"]
[Site "Minsk"]
[Date "2018.06.22"]
[Round "2"]
[White "Melnyk, Olena"]
[Black "Zhapova, Yana"]
[Result "0-1"]
[ECO "D02"]
[WhiteElo "1224"]
[BlackElo "1597"]
[Annotator "NA RC"]
[PlyCount "26"]
[EventDate "2018.06.22"]
[EventType "rapid"]
[EventCountry "BLR"]
[SourceTitle "playchess.com"]
[Source "ChessBase"]
[SourceQuality "1"]
[TimeControl "600+5"]

1. d4 d5 2. Bf4 Nf6 3. Nf3 Bg4 4. e3 e6 5. Be2 c5 6. c3 Nc6 7. O-O Bd6 {[%emt 0:00:35]} 8. Bg3 {[%emt 0:00:11]} O-O {[%emt 0:00:13]} 9. Ne5 {[%emt 0:00:27]} Bxe2 {[%emt 0:00:47]} 10. Qxe2 {[%emt 0:00:02]} Bxe5 11. dxe5 {[%emt 0:00:07]} Ne4 {[%emt 0:00:36]} 12. Nd2 {[%emt 0:00:15]} Nxg3 {[%emt 0:00:04]} 13. fxg3 {[%emt 0:00:02]} Nxe5 {[%emt 0:00:05] end online} 0-1

[Event "2nd FIDE WCC Rapid G10"]
[Site "Minsk"]
[Date "2018.06.22"]
[Round "2"]
[White "Paknyte, Beatrice"]
[Black "Edithso, Samantha"]
[Result "0-1"]
[ECO "B22"]
[WhiteElo "1100"]
[BlackElo "1714"]
[Annotator "NA RC"]
[PlyCount "88"]
[EventDate "2018.06.22"]
[EventType "rapid"]
[EventCountry "BLR"]
[SourceTitle "playchess.com"]
[Source "ChessBase"]
[SourceQuality "1"]
[TimeControl "600+5"]

1. e4 {[%emt 0:00:00]} c5 {[%emt 0:00:01]} 2. c3 {[%emt 0:00:00]} d5 {[%emt 0:00:01]} 3. exd5 {[%emt 0:00:02]} Qxd5 {[%emt 0:00:01]} 4. d4 {[%emt 0:00:05]} cxd4 {[%emt 0:00:12]} 5. cxd4 {[%emt 0:00:03]} Nc6 {[%emt 0:00:14]} 6. Nf3 {[%emt 0:00:11]} e6 {[%emt 0:00:08]} 7. a3 {[%emt 0:00:13]} Nf6 {[%emt 0:00:08]} 8. Nc3 {[%emt 0:00:12]} Qd8 {[%emt 0:00:01]} 9. Bg5 {[%emt 0:00:12]} Be7 {[%emt 0:00:04]} 10. Bb5 {[%emt 0:00:10]} Bd7 {[%emt 0:00:09]} 11. O-O {[%emt 0:00:14]} O-O {[%emt 0:00:02]} 12. Bd3 {[%emt 0:00:58]} h6 {[%emt 0:00:11]} 13. Bh4 {[%emt 0:00:17]} Qb6 {[%emt 0:00:03]} 14. Ne4 {[%emt 0:02:55]} Nd5 {[%emt 0:00:42]} 15. Bxe7 {[%emt 0:00:22]} Ncxe7 {[%emt 0:00:06]} 16. Nc5 {[%emt 0:00:35]} Bc6 {[%emt 0:00:24]} 17. b4 {[%emt 0:00:37]} Nf4 {[%emt 0:00:24]} 18. Rb1 {[%emt 0:01:27]} Nxd3 {[%emt 0:00:16]} 19. Qxd3 {[%emt 0:00:04]} Bb5 {[%emt 0:00:14]} 20. Qd2 {[%emt 0:00:49]} Bxf1 {[%emt 0:00:22]} 21. Nd7 {[%emt 0:00:08]} Qd6 {[%emt 0:00:11]} 22. Nxf8 {[%emt 0:00:09]} Bb5 {[%emt 0:00:11]} 23. Nxe6 {[%emt 0:00:29]} Qxe6 {[%emt 0:00:14]} 24. Re1 {[%emt 0:00:17]} Qf6 {[%emt 0:00:05]} 25. d5 {[%emt 0:00:25]} Rd8 {[%emt 0:00:19]} 26. d6 {[%emt 0:00:47]} Rxd6 {[%emt 0:00:14]} 27. Qc2 {[%emt 0:00:19]} Bc6 {[%emt 0:00:12]} 28. a4 {[%emt 0:00:03]} Bxf3 {[%emt 0:00:24]} 29. gxf3 {[%emt 0:00:06]} Qg6+ {[%emt 0:00:12]} 30. Qxg6 {[%emt 0:00:06]} Rxg6+ {[%emt 0:00:02]} 31. Kf1 {[%emt 0:00:02]} Nd5 {[%emt 0:00:02]} 32. Re8+ {[%emt 0:00:04]} Kh7 {[%emt 0:00:04]} 33. b5 {[%emt 0:00:05]} Re6 {[%emt 0:00:04]} 34. Rb8 {[%emt 0:00:06]} Re7 {[%emt 0:00:06]} 35. a5 {[%emt 0:00:07]} Nc3 {[%emt 0:00:03]} 36. b6 {[%emt 0:00:09]} axb6 {[%emt 0:00:02]} 37. axb6 {[%emt 0:00:03]} Nd5 {[%emt 0:00:02]} 38. Rd8 {[%emt 0:00:07]} Nxb6 {[%emt 0:00:02]} 39. Rb8 {[%emt 0:00:05]} Nd5 {[%emt 0:00:03]} 40. Kg2 {[%emt 0:00:06]} b6 {[%emt 0:00:10]} 41. Kg3 {[%emt 0:00:07]} Rc7 {[%emt 0:00:13]} 42. f4 {[%emt 0:00:03]} Rc3+ {[%emt 0:00:02]} 43. Kg2 {[%emt 0:00:04]} Nxf4+ {[%emt 0:00:03]} 44. Kf1 {[%emt 0:00:02]} Rc1# {[%emt 0:00:02]} 0-1